bitfinex/quotes_ETHUSD_20240825
["timestamp","ask_amount","ask_price","bid_price","bid_amount"]
[1724555423343,5.88251,2767.7,2767.2,10.95365]
[1724555423846,5.88251,2767.7,2767.2,3.61365]
[1724555424967,2.2694,2767.6,2767.2,3.61365]
[1724555428065,5.88264,2767.6,2767.0,5.49865789]
[1724555428269,5.88264,2767.6,2767.1,1.25647637]
[1724555428988,5.88264,2767.6,2767.1,4.87035637]
[1724555429238,5.88264,2767.6,2767.1,3.61388]
[1724555429552,2.2694,2767.6,2767.1,3.61388]
[1724555429986,2.2694,2767.6,2767.1,7.17507015]
[1724555430469,2.2694,2767.6,2767.1,3.61388]
[1724555431905,2.2694,2767.6,2767.2,3.61374]
[1724555432216,3.0,2767.9,2767.5,3.61336]
[1724555432509,2.2694,2767.8,2767.5,3.61336]
[1724555435556,2.2694,2767.8,2767.5,3.61329]
[1724555445110,3.0,2767.9,2767.5,3.61329]
[1724555450440,3.0,2767.9,2767.4,3.61349]
[1724555451524,3.61321,2767.7,2767.2,2.3683]
[1724555451692,3.61321,2767.7,2767.3,1.25648381]
[1724555451897,3.61321,2767.7,2767.2,2.3683]
[1724555452100,3.61321,2767.7,2767.3,1.25648766]
[1724555452434,5.98699,2767.8,2767.2,9.93490439]
[1724555452635,5.98699,2767.8,2767.3,1.25647629]
[1724555452822,5.98699,2767.8,2767.2,7.54310811]
[1724555453020,5.98699,2767.8,2767.3,1.25645386]
[1724555453333,5.98699,2767.8,2767.2,11.49596982]
[1724555453523,5.98699,2767.8,2767.3,1.2564627]
[1724555453703,5.98699,2767.8,2767.2,11.15679811]
[1724555453901,5.98699,2767.8,2767.3,1.25646265]
[1724555454117,5.98699,2767.8,2767.2,7.54310811]
[1724555454302,5.98699,2767.8,2767.3,1.25646676]
[1724555454498,2.374,2767.8,2767.4,3.61347]
[1724555455014,2.374,2767.8,2767.5,3.61335]
[1724555455412,3.0,2767.9,2767.6,3.61322]
[1724555455615,3.0,2768.0,2767.6,3.61322]
[1724555456749,3.0,2768.0,2767.4,7.22685]
[1724555457853,3.0,2768.0,2767.5,3.61336]
[1724555458201,6.61273,2768.0,2767.5,3.61336]
[1724555462052,3.0,2768.0,2767.5,6.71924119]
[1724555462639,6.61279,2768.0,2767.5,4.43164119]
[1724555464451,2.2761,2768.4,2767.9,3.61277]
[1724555465026,2.2761,2768.4,2767.9,3.61275]
[1724555465226,2.2761,2768.4,2768.0,0.48794293]
[1724555465626,2.2761,2768.6,2768.1,3.61257]
[1724555466709,2.2761,2768.6,2768.1,7.22506]
[1724555469122,2.2761,2768.6,2768.2,1.12672122]
[1724555473048,5.2761,2768.8,2768.2,2.3934005]
[1724555473251,2.2761,2768.8,2768.2,1.26667928]
[1724555473649,2.2761,2768.8,2768.4,3.61211]
[1724555473985,5.2761,2769.0,2768.5,3.61205]
[1724555474348,8.88751,2769.0,2768.5,3.61205]
[1724555475652,8.88751,2769.0,2768.3,9.51203]
[1724555475880,8.88751,2769.0,2768.4,1.81187093]
[1724555477048,3.61154,2768.9,2768.4,1.81187093]
[1724555481794,4.87821928,2768.9,2768.4,1.81187093]
[1724555482056,4.87821928,2768.9,2768.3,3.61221]
[1724555482339,8.48985928,2768.9,2768.3,3.61221]
[1724555482650,4.87821928,2768.9,2768.3,3.61221]
[1724555483316,3.61204,2768.6,2767.9,27.01559]
[1724555483533,5.95034,2768.6,2767.9,14.56559]
[1724555483729,1.26667928,2768.5,2767.9,7.34]
[1724555483946,2.3383,2768.4,2767.9,7.34]
[1724555484264,4.87900928,2768.3,2767.9,7.34]
[1724555484426,5.95076,2768.2,2767.9,7.34]
[1724555484815,2.3383,2768.2,2767.9,7.34]
[1724555489418,2.3383,2768.2,2767.7,3.6131]
[1724555492257,2.3383,2768.2,2767.7,7.22612]
[1724555495153,2.3383,2768.2,2767.7,3.61302]
[1724555495475,2.3383,2768.2,2767.7,7.22604]
[1724555495899,2.3383,2768.2,2767.8,3.61292]
[1724555502681,2.3383,2768.2,2767.7,3.61302]
[1724555502881,2.3383,2768.2,2767.9,3.61282]
[1724555504686,5.4338,2768.4,2768.0,3.61263]
[1724555504873,2.4338,2768.4,2768.0,3.61263]
[1724555506078,3.0,2768.5,2768.1,3.61256]
[1724555507460,3.0,2768.5,2767.8,7.23816928]
[1724555507461,3.0,2768.5,2767.9,3.61272]
[1724555507658,2.9982226,2768.5,2767.9,1.86788592]
[1724555508519,2.9982226,2768.5,2768.0,3.6127]
[1724555509427,2.4872,2768.4,2768.0,3.6127]
[1724555524954,2.4872,2768.4,2767.8,7.22575]
[1724555525808,2.4872,2768.4,2767.9,3.61281]
[1724555528964,2.491,2768.3,2767.7,11.44094993]
[1724555529158,2.491,2768.3,2767.7,7.34]
[1724555529366,2.491,2768.1,2767.7,9.22438133]
[1724555529557,2.491,2768.1,2767.7,12.83748182]
[1724555529781,2.491,2768.1,2767.7,12.67402855]
[1724555529984,2.491,2768.1,2767.8,1.25624666]
[1724555530190,2.491,2768.1,2767.7,12.67402855]
[1724555530378,2.491,2768.1,2767.8,1.25623764]
[1724555530692,2.491,2768.1,2767.7,12.67402855]
[1724555531080,2.491,2768.1,2767.7,5.33402855]
[1724555531276,2.491,2768.1,2767.8,1.25625833]
[1724555531498,2.491,2768.1,2767.7,5.33402855]
[1724555531701,2.491,2768.1,2767.8,1.25625707]
[1724555531863,2.491,2768.1,2767.7,5.33402855]
[1724555532069,2.491,2768.1,2767.8,1.25625719]
[1724555532303,2.491,2768.1,2767.7,5.33402855]
[1724555532510,2.491,2768.1,2767.8,1.25624433]
[1724555532708,2.491,2768.1,2767.7,5.33402855]
[1724555533010,2.491,2768.1,2767.8,1.25625168]
[1724555533317,2.491,2768.1,2767.7,5.33402855]
[1724555533522,2.491,2768.1,2767.8,4.86922148]
[1724555533811,2.491,2768.1,2767.8,2.82297]
[1724555534207,2.491,2768.1,2767.8,6.43586]
[1724555534767,2.491,2768.1,2767.8,8.32018924]
[1724555535023,2.491,2768.1,2767.9,3.61281]
[1724555535959,2.3429,2768.4,2767.9,5.49707596]
[1724555536177,3.72609719,2768.4,2768.1,3.61258]
[1724555537780,3.72609719,2768.4,2767.9,5.49697839]
[1724555537985,3.72609719,2768.4,2768.0,3.61267]
[1724555538666,2.3429,2768.4,2768.0,3.61267]
[1724555543220,2.3429,2768.4,2768.2,3.61234]
[1724555543426,2.3429,2768.7,2768.3,3.61232]
[1724555544892,2.3429,2768.7,2768.0,3.61264]
[1724555545091,4.63170621,2768.7,2768.0,3.61264]
[1724555545307,5.3429,2768.6,2768.0,5.49682783]
[1724555545502,2.3429,2768.6,2768.0,3.61264]
[1724555545683,5.3429,2768.6,2768.0,3.61264]
[1724555546220,5.3429,2768.6,2768.2,3.61244]
[1724555546422,6.82842262,2768.6,2768.2,3.61244]
[1724555546625,6.82842262,2768.6,2768.0,5.49682817]
[1724555546626,6.82842262,2768.6,2768.1,3.61253]
[1724555548526,5.3429,2768.6,2768.1,3.61253]
[1724555549381,3.61221,2768.4,2767.9,3.95177464]
[1724555549581,3.61221,2768.4,2768.0,1.2561612]
[1724555549819,2.3429,2768.5,2768.0,3.6127]
[1724555560234,2.3429,2768.5,2768.1,3.61256]
[1724555564552,3.36505793,2768.5,2768.1,3.61256]
[1724555572432,2.3748,2768.4,2768.1,3.61256]
[1724555583235,2.3748,2768.4,2768.1,7.22512]
[1724555583453,2.3748,2768.4,2768.2,3.61237]
[1724555583657,5.2723,2768.7,2768.2,3.61237]
[1724555584070,5.2723,2768.7,2768.1,3.61256]
[1724555584071,2.2723,2768.7,2768.3,3.61229]
[1724555584370,2.2723,2768.7,2768.5,3.61199]
[1724555584854,2.2723,2768.7,2768.3,3.6122]
[1724555593402,4.87841928,2768.8,2768.1,10.95253]
[1724555593403,4.87862928,2768.6,2768.1,10.95253]
[1724555593697,2.2723,2768.5,2768.1,3.61253]
[1724555596192,2.2723,2768.5,2768.1,7.22504]
[1724555596799,2.2723,2768.5,2768.1,7.22502]
[1724555598163,2.2723,2768.5,2768.3,3.6123]
[1724555599475,2.4255,2768.7,2768.3,3.6123]
[1724555599680,3.15589193,2768.7,2768.3,3.6123]
[1724555603271,2.4255,2768.6,2768.3,3.6123]
[1724555612824,2.4255,2768.6,2768.4,3.61217]
[1724555613933,2.4255,2768.8,2768.4,3.61217]
[1724555618836,2.4255,2768.8,2768.3,3.6123]
[1724555619136,0.73037193,2768.7,2768.3,3.6123]
[1724555621215,1.99705121,2768.7,2768.3,3.6123]
[1724555625538,2.4255,2768.8,2768.3,5.863]
[1724555625908,2.4255,2768.8,2768.3,9.47517]
[1724555626108,2.4255,2768.8,2768.3,5.86293]
[1724555632132,6.03718,2768.8,2768.3,5.86293]
[1724555637124,6.03718,2768.8,2768.3,3.61223]
[1724555637386,0.73038593,2768.7,2768.3,3.61223]
[1724555638952,0.73038593,2768.7,2768.2,3.61244]
[1724555639150,4.34220593,2768.7,2768.2,3.61244]
[1724555650222,5.9969,2768.6,2768.1,3.61252]
[1724555650383,2.3849,2768.3,2768.0,19.43]
[1724555658976,2.3849,2768.3,2767.9,3.61276]
[1724555659260,0.024198,2768.0,2767.9,3.61276]
[1724555661843,0.024198,2768.0,2767.8,10.95296]
[1724555662058,0.024198,2768.0,2767.8,7.34]
[1724555662631,0.024198,2768.0,2767.8,9.22437108]
[1724555664886,0.024198,2768.0,2767.8,5.49732108]
[1724555665390,0.024198,2768.0,2767.8,3.61295]
[1724555665883,0.024198,2768.0,2767.8,5.49730967]
[1724555667235,0.024198,2768.0,2767.8,5.49730972]
[1724555667889,0.024198,2768.0,2767.8,5.49730849]
[1724555668385,0.024198,2768.0,2767.8,3.61295]
[1724555668681,0.024198,2768.0,2767.8,5.49730167]
[1724555670242,0.024198,2768.0,2767.8,3.61295]
[1724555675250,0.024198,2768.0,2767.9,3.61284]
[1724555677095,0.024198,2768.0,2767.9,6.75331689]
[1724555677293,0.024198,2768.0,2767.9,8.02634009]
[1724555678907,0.024198,2768.0,2767.9,12.90585937]
[1724555679214,0.024198,2768.0,2767.9,15.32485937]
[1724555679420,0.024198,2768.0,2767.9,15.66395444]
[1724555679600,0.024198,2768.0,2767.9,19.27679444]
[1724555679776,0.024198,2768.0,2767.9,20.03553809]
[1724555679976,0.024198,2768.0,2767.9,20.03553054]
[1724555680202,0.024198,2768.0,2767.9,19.27678689]
[1724555681345,0.024198,2768.0,2767.9,18.93769937]
[1724555681637,0.024198,2768.0,2767.9,19.27678073]
[1724555682713,0.024198,2768.0,2767.9,35.09394073]
[1724555683485,0.024198,2768.0,2767.9,35.85242311]
[1724555686889,0.024198,2768.0,2767.9,33.43331761]
[1724555687590,0.024198,2768.0,2767.9,33.43332654]
[1724555688032,0.024198,2768.0,2767.9,33.433327]
[1724555689308,0.024198,2768.0,2767.9,35.852327]
[1724555690531,0.024198,2768.0,2767.9,35.51323625]
[1724555691030,0.024198,2768.0,2767.9,35.85232104]
[1724555693796,0.024198,2768.0,2767.9,35.85232018]
[1724555695900,0.024198,2768.0,2767.9,35.0938378]
[1724555696199,2.2728,2768.5,2768.1,3.61251]
[1724555696655,2.2728,2768.5,2768.1,5.49665441]
[1724555699573,3.6122,2768.4,2768.1,1.88414441]
[1724555699779,6.00893,2768.2,2767.9,19.43]
[1724555699980,4.213553,2768.1,2767.9,19.43]
[1724555700132,3.61266,2768.1,2767.9,19.43]
[1724555700565,3.61266,2768.1,2767.7,0.75848277]
[1724555700963,3.61266,2768.1,2767.8,3.14064758]
[1724555701280,2.3964,2768.2,2767.8,1.88438855]
[1724555702176,2.3964,2768.2,2767.9,1.25624928]
[1724555702736,3.48517693,2768.2,2767.8,1.88438855]
[1724555703192,3.48517693,2768.2,2767.9,1.25623962]
[1724555703387,4.70125693,2768.2,2767.8,1.88438855]
[1724555703690,2.3964,2768.1,2767.7,5.49747855]
[1724555703842,2.86652569,2768.1,2767.8,1.25630415]
[1724555704237,2.86652569,2768.1,2767.7,5.49747855]
[1724555704740,2.3964,2768.1,2767.8,1.25630521]
[1724555704945,2.3964,2768.3,2767.8,1.88439812]
[1724555705242,2.3964,2768.3,2768.0,3.61261]
[1724555706387,2.3964,2768.3,2767.8,5.49719891]
[1724555706542,2.3964,2768.3,2767.9,4.86905468]
[1724555706741,2.3964,2768.3,2767.9,3.61281]
[1724555707752,2.3964,2768.3,2767.9,5.4971186]
[1724555707941,2.3964,2768.3,2767.9,3.61281]
[1724555708453,3.12391793,2768.3,2767.9,1.88431281]
[1724555708780,2.3964,2768.3,2767.9,5.49712281]
[1724555709857,2.3964,2768.3,2767.9,5.49712595]
[1724555710058,2.3964,2768.3,2767.9,3.61281]
[1724555710258,2.3964,2768.2,2767.8,1.88431595]
[1724555710573,2.3964,2768.0,2767.8,1.88439755]
[1724555710960,2.3964,2768.0,2767.7,1.88439755]
[1724555711155,2.3964,2768.0,2767.8,3.14066148]
[1724555711345,2.3964,2768.0,2767.7,1.88439755]
[1724555713951,2.3964,2768.0,2767.8,3.61297]
[1724555714146,2.3964,2768.0,2767.9,1.25625426]
[1724555714595,2.3964,2768.0,2767.9,6.75345561]
[1724555714896,2.3964,2768.3,2768.0,3.61268]
[1724555718486,2.3964,2768.3,2767.9,1.88427483]
[1724555718689,2.3964,2768.3,2767.9,5.49711483]
[1724555719097,2.3964,2768.3,2767.9,1.88427483]
[1724555719497,2.3964,2768.3,2767.9,1.88430601]
[1724555719681,3.17271372,2768.3,2767.9,1.88430601]
[1724555720090,3.17271372,2768.3,2767.9,3.61284]
[1724555724986,3.17271372,2768.3,2767.9,5.49717461]
[1724555725296,2.4001,2768.5,2768.1,3.61253]
[1724555725499,2.4001,2768.5,2768.2,7.22479]
[1724555725671,3.0,2768.6,2768.3,3.61223]
[1724555725871,2.4001,2768.7,2768.3,3.61223]
[1724555726888,2.4001,2768.7,2768.4,3.61218]
[1724555727496,2.4001,2768.7,2768.2,9.59249]
[1724555727696,2.4001,2768.7,2768.3,3.61232]
[1724555728410,2.4001,2768.7,2768.2,5.98013]
[1724555733833,2.4001,2768.7,2768.2,9.00907393]
[1724555735455,2.4001,2769.0,2768.5,1.26667928]
[1724555735660,0.72898993,2769.9,2768.3,0.07224046]
[1724555735661,2.4001,2769.3,2768.9,3.61152]
[1724555735816,6.05164,2769.5,2768.9,4.87819928]
[1724555736012,6.05164,2769.5,2769.0,2.37102028]
[1724555736013,3.53368493,2769.5,2769.0,2.37102028]
[1724555736424,1.09288493,2769.5,2769.1,3.61126]
[1724555736648,1.09288493,2769.5,2769.0,5.91019]
[1724555738757,3.61033,2769.9,2769.4,3.61087]
[1724555738926,6.0508,2770.1,2769.4,3.61087]
[1724555738927,6.0508,2770.1,2769.5,3.61074]
[1724555739628,6.0508,2770.1,2769.4,4.87754928]
[1724555739955,6.0508,2770.1,2769.5,3.61072]
[1724555740172,2.86194641,2770.1,2769.6,3.61058]
[1724555742253,2.4408,2770.1,2769.6,3.61058]
[1724555742456,5.4408,2770.1,2769.6,3.61058]
[1724555742775,6.70747928,2770.1,2769.6,3.61058]
[1724555746557,4.87700928,2769.9,2769.2,3.61109]
[1724555746883,2.4997,2769.8,2769.2,4.68988093]
[1724555747082,6.11008,2769.8,2769.2,4.68985093]
[1724555747438,2.4997,2769.8,2769.2,8.30090093]
[1724555747637,2.4997,2769.8,2769.2,4.68984093]
[1724555749283,2.4997,2769.8,2769.3,3.61099]
[1724555750687,3.23737093,2769.8,2769.3,3.61099]
[1724555757994,3.23737093,2769.8,2769.0,10.95132]
[1724555757995,2.36,2769.5,2769.0,10.95132]
[1724555758196,1.26667928,2769.4,2769.0,3.61132]
[1724555758372,2.36,2769.3,2769.0,3.61132]
[1724555758568,2.36,2769.3,2768.8,3.6116]
[1724555758869,6.69476493,2769.3,2768.8,3.6116]
[1724555759763,6.69476493,2769.3,2768.7,7.34]
[1724555759764,2.36,2769.1,2768.7,10.95172]
[1724555760228,2.36,2769.1,2768.8,3.61164]
[1724555761201,2.36,2769.1,2768.6,23.04182]
[1724555765230,5.97128,2769.1,2768.6,23.04182]
[1724555765381,2.36,2769.0,2768.6,23.04182]
[1724555766008,2.36,2769.0,2768.6,3.61182]
[1724555779069,2.36,2769.0,2768.4,33.99426]
[1724555779273,2.36,2769.0,2768.4,14.56426]
[1724555779768,5.97142,2769.0,2768.4,14.56426]
[1724555780074,5.97142,2769.0,2768.5,3.61206]
[1724555780247,2.3536,2768.9,2768.5,3.61206]
[1724555781454,5.96518,2768.9,2768.4,7.34]
[1724555781639,2.3536,2768.7,2768.4,7.34]
[1724555781978,5.9654,2768.7,2768.4,7.34]
[1724555782950,2.3536,2768.7,2768.4,7.34]
[1724555784078,2.3536,2768.7,2768.3,3.61231]
[1724555785646,2.3536,2768.9,2768.4,3.6121]
[1724555785857,2.3536,2768.9,2768.5,3.61201]
[1724555787679,2.3536,2768.9,2768.4,3.6121]
[1724555788204,2.3536,2768.9,2768.4,7.22421]
[1724555788387,2.3536,2768.9,2768.4,3.6121]
[1724555789807,3.61124,2768.9,2768.4,3.6121]
[1724555791891,7.2228,2768.9,2768.4,3.6121]
[1724555794272,5.96516,2768.9,2768.4,3.6121]
[1724555796298,2.3536,2768.9,2768.4,3.6121]
[1724555803195,2.3536,2768.9,2768.5,1.25596102]
[1724555803556,2.3536,2768.9,2768.4,9.10816323]
[1724555803756,2.3536,2768.9,2768.5,1.2559608]
[1724555804194,2.3536,2768.9,2768.5,1.88394323]
[1724555805661,2.3536,2768.9,2768.5,1.88394791]
[1724555806086,2.3536,2768.9,2768.5,5.49597791]
[1724555807176,2.3536,2768.9,2768.5,3.61203]
[1724555807406,2.3536,2768.9,2768.5,5.49597446]
[1724555807567,2.3536,2768.9,2768.5,3.61203]
[1724555807779,2.3536,2768.9,2768.5,5.49597513]
[1724555807989,2.3536,2768.9,2768.5,5.49597648]
[1724555808162,2.3536,2768.9,2768.5,3.61203]
[1724555808602,2.2988,2769.3,2768.8,3.61167]
[1724555808906,5.90982,2769.3,2768.7,3.61173]
[1724555809119,3.0,2769.2,2768.7,3.61173]
[1724555809323,3.0,2769.2,2768.7,5.83448347]
[1724555809620,3.0,2769.2,2768.7,3.61173]
[1724555809830,3.0,2769.2,2768.7,3.95073779]
[1724555810035,3.0,2769.2,2768.8,1.25584766]
[1724555810237,6.61115,2769.2,2768.7,3.95073779]
[1724555810387,2.2988,2769.1,2768.8,1.2558379]
[1724555810707,2.2988,2769.1,2768.7,3.61173]
[1724555810911,2.2988,2769.1,2768.8,1.25584297]
[1724555811125,2.2988,2769.1,2768.7,3.61173]
[1724555811300,2.2988,2769.1,2768.8,1.25584308]
[1724555811501,2.2988,2769.1,2768.7,3.61173]
[1724555811902,2.2988,2769.1,2768.8,1.25584076]
[1724555812096,2.2988,2769.1,2768.7,3.61173]
[1724555812415,2.2988,2769.1,2768.7,5.49550582]
[1724555814140,2.2988,2769.1,2768.7,3.61173]
[1724555814502,2.2988,2769.1,2768.6,0.33901244]
[1724555814716,2.2988,2769.1,2768.7,1.25586971]
[1724555814919,2.2988,2769.1,2768.6,2.22282381]
[1724555815126,2.2988,2769.1,2768.7,1.25586971]
[1724555815287,5.91008,2769.1,2768.6,3.95093924]
[1724555815596,5.91008,2769.1,2768.7,1.25586967]
[1724555815800,5.91008,2769.1,2768.6,3.95093924]
[1724555816006,5.91008,2769.1,2768.7,1.25587845]
[1724555816208,5.91008,2769.1,2768.6,0.33901924]
[1724555816398,5.91008,2769.1,2768.7,1.25586968]
[1724555816606,5.91008,2769.1,2768.6,0.33902233]
[1724555816819,5.91008,2769.1,2768.7,1.25587136]
[1724555817130,5.91008,2769.1,2768.6,1.8838111]
[1724555817300,5.91008,2769.1,2768.7,1.25587382]
[1724555817502,5.91008,2769.1,2768.6,1.88381273]
[1724555817691,5.91008,2769.1,2768.7,1.25587515]
[1724555817883,5.91008,2769.1,2768.6,1.88381649]
[1724555818090,5.91008,2769.1,2768.7,1.25587767]
[1724555818343,5.91008,2769.1,2768.6,1.88381625]
[1724555818545,5.91008,2769.1,2768.7,1.25587755]
[1724555818719,5.91008,2769.1,2768.6,1.88381659]
[1724555819029,5.91008,2769.1,2768.5,25.06307467]
[1724555819030,5.91008,2769.1,2768.7,1.25587749]
[1724555819227,5.91008,2769.1,2768.6,1.88381624]
[1724555819527,5.91008,2769.1,2768.5,25.06307467]
[1724555819528,2.4824,2768.8,2768.5,19.43]
[1724555819999,2.4824,2768.8,2768.6,1.25592062]
[1724555820202,2.4824,2768.8,2768.5,19.43]
[1724555820434,2.4824,2768.8,2768.6,1.25593247]
[1724555820726,2.4824,2768.8,2768.5,19.43]
[1724555821020,2.4824,2768.8,2768.6,1.25594298]
[1724555821233,2.4824,2768.8,2768.5,19.43]
[1724555821525,2.4824,2768.8,2768.6,1.25594298]
[1724555821746,2.4824,2768.8,2768.5,19.43]
[1724555821965,2.4824,2768.8,2768.6,1.25593335]
[1724555822120,2.4824,2768.8,2768.5,19.43]
[1724555822327,2.4824,2768.8,2768.6,1.25593681]
[1724555822522,2.4824,2768.8,2768.5,19.43]
[1724555823372,2.4824,2768.8,2768.6,1.25594509]
[1724555823510,2.4824,2768.8,2768.5,19.43]
[1724555825523,2.4824,2768.8,2768.4,3.61218]
[1724555825720,2.4824,2768.8,2768.5,3.13988243]
[1724555825957,2.4824,2768.8,2768.5,1.88392946]
[1724555828598,2.4824,2768.8,2768.4,3.9512236]
[1724555828779,2.4824,2768.8,2768.5,3.13988205]
[1724555828975,2.4824,2768.8,2768.5,1.88392923]
[1724555830771,2.4824,2769.0,2768.6,4.86786821]
[1724555830971,2.4824,2769.0,2768.6,3.61193]
[1724555831583,2.4824,2769.0,2768.6,5.49580067]
[1724555831784,5.4824,2769.2,2768.8,3.61162]
[1724555834589,5.4824,2769.2,2768.7,3.61179]
[1724555834787,5.4824,2769.2,2768.8,1.25579348]
[1724555834989,5.4824,2769.2,2768.7,3.61179]
[1724555835290,5.4824,2769.2,2768.7,5.4954966]
[1724555836790,5.4824,2769.2,2768.7,6.95599798]
[1724555836962,2.3971,2769.4,2769.0,4.87802928]
[1724555837286,2.3971,2769.6,2769.2,3.61115]
[1724555837486,6.00773,2769.6,2769.0,8.48932928]
[1724555837793,6.00773,2769.6,2769.0,11.58914675]
[1724555838093,6.00773,2769.6,2769.1,3.13914617]
[1724555838307,6.00773,2769.6,2769.0,12.34359214]
[1724555838308,6.00773,2769.6,2769.0,11.58914675]
[1724555838456,6.00773,2769.6,2769.1,1.2556268]
[1724555839576,2.3971,2769.6,2769.2,2.52230608]
[1724555839783,2.3971,2769.6,2769.4,3.61079]
[1724555840955,2.3971,2769.6,2769.3,0.44057061]
[1724555841356,2.3971,2769.6,2769.2,3.61103]
[1724555851638,6.00778,2769.6,2769.1,19.43]
[1724555852000,6.00778,2769.6,2769.1,23.04125]
[1724555852245,6.00778,2769.6,2769.1,3.61125]
[1724555853541,2.3971,2769.6,2769.2,3.61111]
[1724555854421,2.3971,2769.6,2769.2,3.590056]
[1724555855034,2.3971,2769.6,2769.3,3.61101]
[1724555860448,2.2953,2769.5,2769.1,3.61115]
[1724555861763,2.2953,2769.5,2769.1,7.22234]
[1724555862508,2.2953,2769.5,2769.2,3.61111]
[1724555863891,2.2953,2769.5,2769.3,3.61089]
[1724555866434,5.2953,2769.8,2769.3,7.22182]
[1724555866621,6.67354393,2769.8,2769.3,3.61089]
[1724555872120,2.2953,2769.7,2769.3,3.61089]
[1724555883241,2.2953,2769.7,2769.4,1.25556207]
[1724555883443,2.2953,2769.7,2769.3,3.61089]
[1724555883669,2.2953,2769.7,2769.4,1.25555896]
[1724555883825,2.2953,2769.7,2769.3,3.61089]
[1724555884026,3.45036132,2769.7,2769.4,1.25556199]
[1724555884231,3.45036132,2769.7,2769.3,3.61089]
[1724555884451,3.45036132,2769.7,2769.4,1.25557991]
[1724555884650,3.45036132,2769.7,2769.3,3.61089]
[1724555884878,3.45036132,2769.7,2769.4,1.25558075]
[1724555885149,3.45036132,2769.7,2769.3,3.61089]
[1724555885344,3.45036132,2769.7,2769.4,1.25557951]
[1724555885551,1.00607513,2769.6,2769.3,3.61089]
[1724555885751,1.00607513,2769.6,2769.4,1.25558245]
[1724555885982,1.00607513,2769.6,2769.3,3.61089]
[1724555886183,1.26667928,2769.7,2769.2,4.36557539]
[1724555886483,2.4741,2769.6,2769.3,1.25560778]
[1724555886647,2.4741,2769.6,2769.2,3.61113]
[1724555886847,2.4741,2769.6,2769.3,1.25563787]
[1724555887049,2.4741,2769.6,2769.2,7.22226]
[1724555887276,2.4741,2769.6,2769.3,1.25564789]
[1724555887480,2.4741,2769.6,2769.2,7.22226]
[1724555887673,2.4741,2769.6,2769.3,1.25564664]
[1724555887874,2.4741,2769.6,2769.2,3.61113]
[1724555888282,2.4741,2769.6,2769.3,1.25565042]
[1724555888586,2.4741,2769.6,2769.0,11.70575539]
[1724555888587,2.4741,2769.5,2769.0,11.70575539]
[1724555888778,2.4741,2769.5,2769.1,7.5048388]
[1724555889084,2.4741,2769.5,2769.2,3.13912341]
[1724555889284,2.4741,2769.5,2769.1,4.36571539]
[1724555889486,2.4741,2769.5,2769.2,3.13915203]
[1724555889796,2.4741,2769.5,2769.3,1.25566081]
[1724555890088,2.4741,2769.5,2769.1,4.36571539]
[1724555890287,2.4741,2769.5,2769.2,3.1390878]
[1724555890484,2.4741,2769.5,2769.1,4.36571539]
[1724555890485,2.4741,2769.5,2769.3,1.25563512]
[1724555890666,2.4741,2769.5,2769.1,4.36571539]
[1724555890991,2.4741,2769.5,2769.2,3.13909778]
[1724555891195,2.4741,2769.5,2769.3,1.25563911]
[1724555891352,2.4741,2769.5,2769.1,4.36571539]
[1724555891683,2.4741,2769.5,2769.2,3.13909028]
[1724555891887,2.4741,2769.5,2769.3,1.25563629]
[1724555892073,2.4741,2769.5,2769.2,1.883457]
[1724555892265,2.4741,2769.5,2769.3,1.25563251]
[1724555892461,2.4741,2769.5,2769.2,3.61115]
[1724555892680,2.4741,2769.5,2769.3,1.25564136]
[1724555892852,2.4741,2769.5,2769.2,3.61115]
[1724555893051,2.4741,2769.5,2769.3,1.25563507]
[1724555893375,2.4741,2769.5,2769.2,3.94999895]
[1724555893580,2.4741,2769.5,2769.3,1.25564756]
[1724555893908,2.4741,2769.5,2769.2,3.94999895]
[1724555894087,2.4741,2769.5,2769.3,1.25561962]
[1724555894396,2.4741,2769.5,2769.2,3.94991895]
[1724555894604,2.4741,2769.5,2769.3,1.25563572]
[1724555894803,2.4741,2769.5,2769.2,3.61107]
[1724555894804,2.4741,2769.5,2769.2,7.56098699]
[1724555894986,2.4741,2769.5,2769.3,1.25564008]
[1724555895187,2.4741,2769.5,2769.2,3.61106]
[1724555895359,2.4741,2769.5,2769.3,3.13899997]
[1724555895559,2.4741,2769.5,2769.2,3.61106]
[1724555895983,2.4741,2769.5,2769.3,3.13900178]
[1724555896254,2.4254,2769.6,2769.5,3.61076]
[1724555901398,2.4254,2770.2,2769.6,3.61062]
[1724555901690,2.4254,2770.2,2769.8,3.61028]
[1724555903375,3.69207928,2770.2,2769.8,3.61028]
[1724555903694,4.42225221,2770.2,2769.8,3.61028]
[1724555904066,2.4254,2770.1,2769.7,3.61047]
[1724555904482,2.4254,2770.0,2769.5,3.61068]
[1724555904995,2.4254,2770.0,2769.6,6.13271371]
[1724555905201,2.4254,2770.0,2769.6,7.17181015]
[1724555905499,2.4254,2770.0,2769.4,30.38077]
[1724555905500,1.26667928,2769.8,2769.4,30.38077]
[1724555905673,2.4254,2769.7,2769.4,30.38077]
[1724555905862,2.4254,2769.7,2769.4,3.61077]
[1724555909896,2.4254,2769.7,2769.3,1.88334228]
[1724555910077,2.4254,2769.7,2769.0,31.51304809]
[1724555910078,2.4254,2769.5,2769.1,2.63785832]
[1724555910278,2.4254,2769.5,2769.2,3.13902232]
[1724555910477,2.4254,2769.5,2769.2,1.88344631]
[1724555910697,2.4254,2769.5,2769.0,4.36575539]
[1724555910897,2.4254,2769.5,2769.1,3.13918911]
[1724555911212,2.4254,2769.5,2769.2,1.25567564]
[1724555911511,2.40781632,2769.5,2769.1,3.61125]
[1724555911690,2.40781632,2769.5,2769.2,1.25565838]
[1724555911896,2.40781632,2769.5,2769.1,5.49476774]
[1724555912405,2.40781632,2769.5,2769.1,3.61125]
[1724555914014,2.40781632,2769.5,2769.1,5.49475683]